fUSD/lending_fUSD_20250123
["ID","MTS","AMOUNT","RATE_DAILY","PERIOD"]
[350117768,1737639032484,-2368.0,0.00016299,2]
[350117769,1737639032493,-428932.68679515,0.000163,4]
[350117770,1737639032514,-527.3424131,0.000163,4]
[350117771,1737639032536,-2607.241105,0.00012,2]
[350117772,1737639032547,-1553.71056186,0.00012,2]
[350117773,1737639032744,-53889.57541844,0.00012,2]
[350117777,1737639037459,-152.67184106,0.000119,2]
[350117778,1737639037469,-9162.96773377,0.00012,2]
[350117779,1737639037523,-1165.9087451,0.00012,2]
[350117780,1737639037536,-11010.9998988,0.00012,2]
[350117781,1737639037549,-355.87693607,0.00012,2]
[350117782,1737639037562,-664.27284953,0.00012,2]
[350117783,1737639037573,-607.97363732,0.00012,2]
[350117784,1737639037699,-2820.47939971,0.00012,2]
[350117785,1737639037711,-1850.9311271,0.00012,2]
[350117786,1737639037722,-1155.0,0.00012,2]
[350117787,1737639037759,-366.21861425,0.00012,2]
[350117799,1737639039856,-855.12389015,0.00012,2]
[350117800,1737639039918,-1029.94312625,0.00012,2]
[350117824,1737639042967,-584.36999999,0.00012,2]
[350117964,1737639045391,-761.32500194,0.00012,2]
[350117965,1737639045627,-9150.00003,0.00012,2]
[350118012,1737639234338,-169.12943615,0.00011936,2]
[350118013,1737639234362,-161.81886842,0.00011936,2]
[350118014,1737639234384,-2176.96481272,0.00011936,2]
[350118015,1737639234406,-19293.62277373,0.00011936,2]
[350118016,1737639234428,-501.39060582,0.00011973,2]
[350118017,1737639234452,-500.0,0.00011999,2]
[350118018,1737639234476,-1070.62980196,0.00011999,2]
[350118019,1737639241254,300.0,0.00011998,2]
[350118020,1737639246459,-75826.4437012,0.00011999,2]
[350118021,1737639252852,-100000.0,0.00011999,2]
[350118024,1737639705518,157.14,0.00016658,30]
[350118029,1737640148689,-262.38162098,0.00010137,2]
[350118056,1737640231738,-99.70837902,0.00010137,2]
[350118057,1737640231748,-299.74,0.00010137,2]
[350118058,1737640231760,-491.12,0.00012,2]
[350118059,1737640231770,-500.0,0.00012247,2]
[350118060,1737640231780,-181.0,0.00012329,2]
[350118061,1737640231790,-500.0,0.00012329,2]
[350118062,1737640231799,-430.0,0.00012438,2]
[350118063,1737640231809,-1330.88,0.00012504,2]
[350118064,1737640231818,-500.0,0.00012795,2]
[350118065,1737640231827,-182.38116118,0.00013394,2]
[350118066,1737640231837,-189.0,0.00013616,2]
[350118067,1737640231846,-1000.0,0.00014228,2]
[350118068,1737640231856,-150.0,0.00014236,2]
[350118069,1737640231865,-250.0,0.00014259,2]
[350118070,1737640231874,-250.0,0.00014281,2]
[350118071,1737640231883,-999.54,0.00014339,2]
[350118072,1737640231892,-260.64,0.0001435,2]
[350118073,1737640231901,-184.65,0.00014353,2]
[350118074,1737640231911,-428.11,0.0001437,2]
[350118075,1737640231921,-206.83,0.00014381,2]
[350118076,1737640231931,-1269.65,0.00014406,2]
[350118077,1737640231942,-300.0,0.0001443,2]
[350118078,1737640231953,-1373.11,0.00014503,2]
[350118079,1737640231963,-300.0,0.00014538,2]
[350118080,1737640231974,-23900.0,0.00014539,2]
[350118081,1737640231983,-1852.42,0.0001454,2]
[350118082,1737640231992,-200.0,0.00014541,2]
[350118083,1737640232001,-250.0,0.0001457,2]
[350118084,1737640232013,-170.28,0.0001457,2]
[350118085,1737640232022,-1704.24,0.0001458,2]
[350118086,1737640232031,-494.78,0.0001464,2]
[350118087,1737640232041,-1330.88,0.00014768,2]
[350118088,1737640232050,-640.03463225,0.0001487,2]
[350118089,1737640232061,-150.0,0.0001497,2]
[350118090,1737640232070,-175.23,0.0001497,2]
[350118091,1737640232079,-550.0,0.00015,2]
[350118092,1737640232089,-206.83,0.000151,2]
[350118093,1737640232098,-438.64,0.00015257,2]
[350118094,1737640232108,-773.39,0.00015257,2]
[350118095,1737640232119,-982.28,0.00015272,2]
[350118096,1737640232128,-398.0,0.00015342,2]
[350118097,1737640232140,-161.0,0.0001552,2]
[350118098,1737640232150,-492.0,0.00015816,2]
[350118099,1737640232159,-206.83,0.00015819,2]
[350118100,1737640232168,-430.64066539,0.00015905,2]
[350118101,1737640232178,-420.0,0.00015919,2]
[350118102,1737640232188,-1000.0,0.00016007,2]
[350118103,1737640232198,-279.1031685,0.00016011,2]
[350118104,1737640232207,-298.1,0.00016094,2]
[350118105,1737640232216,-298.1,0.00016094,2]
[350118106,1737640232225,-298.1,0.00016094,2]
[350118107,1737640232234,-982.28,0.00016095,2]
[350118108,1737640232243,-982.28,0.00016095,2]
[350118109,1737640232253,-152.64,0.00016095,2]
[350118110,1737640232266,-982.28,0.00016095,2]
[350118111,1737640232276,-979.83,0.00016095,2]
[350118112,1737640232285,-768.99,0.00016095,2]
[350118113,1737640232294,-981.79,0.00016095,2]
[350118114,1737640232303,-5427.7152,0.000161,2]
[350118115,1737640232312,-880.08987984,0.000161,2]
[350118116,1737640232320,-880.08987978,0.00016111,2]
[350118117,1737640232332,-880.08987978,0.00016122,2]
[350118118,1737640232346,-880.08987978,0.00016133,2]
[350118119,1737640232360,-260.64,0.00016144,2]
[350118120,1737640232371,-880.08987978,0.00016144,2]
[350118121,1737640232384,-880.08987978,0.00016156,2]
[350118122,1737640232397,-1000.0,0.00016166,2]
[350118123,1737640232411,-880.08987978,0.00016167,2]
[350118124,1737640232424,-880.08987978,0.00016178,2]
[350118125,1737640232437,-880.08987978,0.00016189,2]
[350118126,1737640232448,-966.3279,0.00016199,2]
[350118127,1737640232460,-36160.0616,0.000162,2]
[350118128,1737640232474,-1638.1929,0.000162,2]
[350118129,1737640232488,-5000.0,0.000162,2]
[350118130,1737640232501,-1000.0,0.000162,2]
[350118131,1737640232517,-42186.56637558,0.000162,2]
[350118132,1737640232535,-8887.22166237,0.000162,2]
[350118133,1737640232551,-839.68,0.000162,2]
[350118134,1737640232687,-341.19183706,0.000162,2]
[350118135,1737640232714,-628.78,0.000162,2]
[350118136,1737640232737,-339.72509666,0.000162,2]
[350118137,1737640232758,-2331.83502833,0.000162,2]
[350118138,1737640232772,-1654.2826,0.000162,2]
[350118139,1737640232784,-2500.0,0.000162,2]
[350118140,1737640232797,-916.2179766,0.000162,2]
[350118141,1737640232808,-183.80640727,0.000162,2]
[350118142,1737640232821,-8007.36919362,0.000162,2]
[350118143,1737640232833,-220.1213674,0.000162,2]
[350118144,1737640232845,-1451.30987514,0.000162,2]
[350118145,1737640232857,-12862.41518248,0.000162,2]
[350118146,1737640232869,-356.34417484,0.000162,2]
[350118147,1737640232881,-880.08987978,0.000162,2]
[350118148,1737640232893,-500.0,0.00016207,2]
[350118149,1737640232907,-438.64,0.00016216,2]
[350118150,1737640232918,-773.39,0.00016216,2]
[350118151,1737640232930,-773.39,0.00016216,2]
[350118152,1737640232942,-438.64,0.00016216,2]
[350118153,1737640232953,-773.39,0.00016216,2]
[350118154,1737640232966,-773.39,0.00016216,2]
[350118155,1737640232977,-500.0,0.00016299,2]
[350118156,1737640232989,-1068.18596,0.00016299,2]
[350118157,1737640233001,-2119.0,0.00016299,2]
[350118158,1737640233014,-535.31490098,0.00016299,2]
[350118159,1737640233026,-153735.23529404,0.000163,4]
[350118160,1737640235963,-1668.40143416,0.000163,2]
[350118161,1737640236040,-171681.59605815,0.000163,2]
[350118328,1737640237544,-1580.77781548,0.000163,2]
[350118333,1737640237610,-251.1859998,0.000163,2]
[350118334,1737640237678,-42320.70707472,0.000163,2]
[350118341,1737640237735,-2809.6,0.000163,2]
[350118342,1737640237795,-22028.3995694,0.000163,2]
[350118364,1737640239632,-642.66000001,0.000163,2]
[350118365,1737640239645,-2193.13999996,0.000163,2]
[350118366,1737640239701,-9607.171805,0.000163,2]
[350118367,1737640239822,-4100257.05557212,0.000163,2]
[350118368,1737640239832,-2942793.86937476,0.000163,4]
[350118369,1737640239842,-2000.0,0.000163,2]
[350118370,1737640239851,-200.0,0.000163,2]
[350118371,1737640239860,-2000.0,0.000163,2]
[350118372,1737640239869,-200.0,0.000163,2]
[350118373,1737640239878,-5556.0,0.000163,5]
[350118374,1737640239887,-200.0,0.0001634,2]
[350118375,1737640239897,-30000.0,0.00016351,2]
[350118376,1737640239906,-1000.0,0.000164,2]
[350118377,1737640239915,-500.0,0.00016436,2]
[350118378,1737640239924,-157.710719,0.00016438,2]
[350118379,1737640239934,-500.0,0.00016438,2]
[350118380,1737640239943,-238.14252457,0.00016438,2]
[350118381,1737640239953,-303.57866061,0.00016438,2]
[350118382,1737640239962,-500.0,0.00016438,2]
[350118383,1737640239971,-500.0,0.00016438,2]
[350118384,1737640239981,-255.17235369,0.00016438,2]
[350118385,1737640239991,-398.78380301,0.00016438,2]
[350118386,1737640240000,-503.1560532,0.00016438,2]
[350118387,1737640240010,-507.15154089,0.00016438,2]
[350118388,1737640240020,-277.5827939,0.00016438,2]
[350118389,1737640240029,-500.0,0.00016438,2]
[350118390,1737640240038,-500.0,0.00016438,2]
[350118391,1737640240047,-500.0,0.00016438,2]
[350118392,1737640240057,-500.0,0.00016438,2]
[350118393,1737640240072,-500.0,0.00016438,2]
[350118395,1737640240082,-503.36795261,0.00016438,2]
[350118397,1737640240091,-500.0,0.00016438,2]
[350118399,1737640240100,-501.79703619,0.00016438,2]
[350118401,1737640240110,-500.0,0.00016438,2]
[350118402,1737640240119,-500.0,0.00016438,2]
[350118403,1737640240129,-300.0,0.00016438,2]
[350118404,1737640240138,-500.0,0.00016438,2]
[350118405,1737640240148,-505.61179757,0.00016438,2]
[350118407,1737640240158,-511.79901252,0.00016438,2]
[350118409,1737640240167,-500.0,0.00016438,2]
[350118411,1737640240176,-501.86296188,0.00016438,2]
[350118413,1737640240185,-500.0,0.00016438,2]
[350118415,1737640240195,-509.60363267,0.00016438,2]
[350118417,1737640240204,-500.66724069,0.00016438,2]
[350118419,1737640240213,-554.01037671,0.00016438,2]
[350118421,1737640240222,-502.90391477,0.00016438,2]
[350118422,1737640240230,-500.0,0.00016438,2]
[350118424,1737640240239,-419.4665306,0.00016438,2]
[350118427,1737640240249,-500.39067673,0.00016438,2]
[350118428,1737640240258,-500.00383754,0.00016438,2]
[350118430,1737640240269,-501.95318657,0.00016438,2]
[350118431,1737640240279,-500.0,0.00016438,2]
[350118432,1737640240288,-500.0,0.00016438,2]
[350118433,1737640240298,-500.0,0.00016438,2]
[350118434,1737640240307,-500.0,0.00016438,2]
[350118435,1737640240316,-500.0,0.00016438,2]
[350118436,1737640240326,-500.0,0.00016438,2]
[350118437,1737640240335,-500.0,0.00016438,2]
[350118438,1737640240345,-500.0,0.00016438,2]
[350118439,1737640240354,-503.59872453,0.00016438,2]
[350118440,1737640240364,-500.0,0.00016438,2]
[350118441,1737640240373,-500.0,0.00016438,2]
[350118442,1737640240382,-500.0,0.00016438,2]
[350118443,1737640240392,-500.0,0.00016438,2]
[350118444,1737640240401,-151.0,0.00016438,2]
[350118445,1737640240411,-151.0,0.00016438,2]
[350118446,1737640240420,-236.923233,0.00016438,2]
[350118447,1737640240429,-505.45965227,0.00016438,2]
[350118448,1737640240438,-500.0,0.00016438,2]
[350118449,1737640240448,-500.0,0.00016438,2]
[350118450,1737640240458,-151.0,0.00016438,2]
[350118451,1737640240467,-151.0,0.00016438,2]
[350118452,1737640240476,-151.0,0.00016438,2]
[350118453,1737640240486,-500.0,0.00016438,2]
[350118454,1737640240496,-500.0,0.00016438,2]
[350118455,1737640240505,-500.0,0.00016438,2]
[350118456,1737640240516,-500.0,0.00016438,2]
[350118457,1737640240525,-500.0,0.00016438,2]
[350118458,1737640240535,-500.0,0.00016438,2]
[350118459,1737640240545,-500.0,0.00016438,2]
[350118460,1737640240554,-151.0,0.00016438,2]
[350118461,1737640240564,-277.829003,0.00016438,2]
[350118462,1737640240574,-500.0,0.00016438,2]
[350118463,1737640240584,-507.55046744,0.00016438,2]
[350118464,1737640240593,-500.0,0.00016438,2]
[350118465,1737640240606,-500.0,0.00016438,2]
[350118466,1737640240616,-503.13034414,0.00016438,2]
[350118467,1737640240626,-500.0,0.00016438,2]
[350118468,1737640240636,-500.0,0.00016438,2]
[350118469,1737640240646,-500.0,0.00016438,2]
[350118470,1737640240656,-500.0,0.00016438,2]
[350118471,1737640240665,-504.88105496,0.00016438,2]
[350118472,1737640240674,-151.0,0.00016438,2]
[350118473,1737640240683,-151.0,0.00016438,2]
[350118474,1737640240695,-151.0,0.00016438,2]
[350118475,1737640240705,-500.0,0.00016438,2]
[350118476,1737640240714,-500.0,0.00016438,2]
[350118477,1737640240724,-505.7697855,0.00016438,2]
[350118478,1737640240733,-500.0,0.00016438,2]
[350118479,1737640240743,-500.0,0.00016438,2]
[350118480,1737640240752,-500.0,0.00016438,2]
[350118481,1737640240762,-500.0,0.00016438,2]
[350118482,1737640240772,-500.0,0.00016438,2]
[350118483,1737640240782,-517.59608472,0.00016438,2]
[350118484,1737640240791,-478.64289499,0.00016438,2]
[350118485,1737640240801,-500.0,0.00016438,2]
[350118486,1737640240810,-500.0,0.00016438,2]
[350118487,1737640240819,-500.0,0.00016438,2]
[350118488,1737640240828,-500.0,0.00016438,2]
[350118489,1737640240838,-501.929485,0.00016438,2]
[350118490,1737640240847,-500.0,0.00016438,2]
[350118491,1737640240856,-500.0,0.00016438,2]
[350118492,1737640240865,-500.0,0.00016438,2]
[350118493,1737640240875,-500.0,0.00016438,2]
[350118494,1737640240884,-500.0,0.00016438,2]
[350118495,1737640240893,-500.0,0.00016438,2]
[350118496,1737640240904,-500.0,0.00016438,2]
[350118497,1737640240913,-500.0,0.00016438,2]
[350118498,1737640240923,-500.0,0.00016438,2]
[350118499,1737640240933,-500.0,0.00016438,2]
[350118500,1737640240943,-501.83354844,0.00016438,2]
[350118501,1737640240952,-500.0,0.00016438,2]
[350118502,1737640240961,-151.0,0.00016438,2]
[350118503,1737640240971,-151.0,0.00016438,2]
[350118504,1737640240981,-500.0,0.00016438,2]
[350118505,1737640240990,-151.0,0.00016438,2]
[350118506,1737640241000,-500.0,0.00016438,2]
[350118507,1737640241010,-500.0,0.00016438,2]
[350118508,1737640241022,-500.0,0.00016438,2]
[350118509,1737640241031,-290.2482,0.00016438,2]
[350118510,1737640241041,-500.0,0.00016438,2]
[350118511,1737640241051,-500.0,0.00016438,2]
[350118512,1737640241060,-152.251063,0.00016438,2]
[350118513,1737640241069,-500.0,0.00016438,2]
[350118514,1737640241079,-500.0,0.00016438,2]
[350118515,1737640241090,-500.0,0.00016438,2]
[350118516,1737640241099,-500.0,0.00016438,2]
[350118517,1737640241109,-500.0,0.00016438,2]
[350118518,1737640241118,-500.0,0.00016438,2]
[350118519,1737640241127,-151.0,0.00016438,2]
[350118520,1737640241137,-151.0,0.00016438,2]
[350118521,1737640241146,-244.245665,0.00016438,2]
[350118522,1737640241155,-500.0,0.00016438,2]
[350118523,1737640241165,-500.0,0.00016438,2]
[350118524,1737640241174,-500.0,0.00016438,2]
[350118525,1737640241183,-500.0,0.00016438,2]
[350118526,1737640241193,-500.0,0.00016438,2]
[350118527,1737640241202,-500.0,0.00016438,2]
[350118528,1737640241212,-500.0,0.00016438,2]
[350118529,1737640241221,-500.0,0.00016438,2]
[350118530,1737640241230,-500.0,0.00016438,2]
[350118531,1737640241240,-500.0,0.00016438,2]
[350118532,1737640241249,-500.0,0.00016438,2]
[350118533,1737640241258,-500.0,0.00016438,2]
[350118534,1737640241271,-500.0,0.00016438,2]
[350118535,1737640241280,-151.0,0.00016438,2]
[350118536,1737640241290,-151.0,0.00016438,2]
[350118537,1737640241299,-151.0,0.00016438,2]
[350118538,1737640241308,-500.0,0.00016438,2]
[350118539,1737640241318,-500.0,0.00016438,2]
[350118540,1737640241327,-500.0,0.00016438,2]
[350118541,1737640241336,-504.02554468,0.00016438,2]
[350118542,1737640241346,-500.0,0.00016438,2]
[350118543,1737640241355,-500.0,0.00016438,2]
[350118544,1737640241364,-500.0,0.00016438,2]
[350118545,1737640241373,-500.0,0.00016438,2]
[350118546,1737640241382,-500.0,0.00016438,2]
[350118547,1737640241392,-500.0,0.00016438,2]
[350118548,1737640241402,-500.0,0.00016438,2]
[350118549,1737640241411,-500.0,0.00016438,2]
[350118550,1737640241420,-501.37314835,0.00016438,2]
[350118551,1737640241429,-500.0,0.00016438,2]
[350118552,1737640241439,-459.40049079,0.00016438,2]
[350118553,1737640241449,-500.0,0.00016438,2]
[350118554,1737640241459,-502.0790368,0.00016438,2]
[350118555,1737640241469,-502.47435186,0.00016438,2]
[350118556,1737640241478,-500.0,0.00016438,2]
[350118557,1737640241487,-501.87132374,0.00016438,2]
[350118558,1737640241496,-500.0,0.00016438,2]
[350118559,1737640241505,-500.0,0.00016438,2]
[350118560,1737640241516,-500.0,0.00016438,2]
[350118561,1737640241526,-500.0,0.00016438,2]
[350118562,1737640241536,-500.0,0.00016438,2]
[350118563,1737640241544,-500.0,0.00016438,2]
[350118564,1737640241554,-510.9432521,0.00016438,2]
[350118565,1737640241563,-508.45510436,0.00016438,2]
[350118566,1737640241572,-500.0,0.00016438,2]
[350118567,1737640241582,-500.84008961,0.00016438,2]
[350118568,1737640241591,-502.16975897,0.00016438,2]
[350118569,1737640241601,-500.0,0.00016438,2]
[350118570,1737640241611,-500.0,0.00016438,2]
[350118571,1737640241623,-500.0,0.00016438,2]
[350118572,1737640241632,-160.948852,0.00016438,2]
[350118573,1737640241641,-160.948852,0.00016438,2]
[350118574,1737640241652,-160.948852,0.00016438,2]
[350118575,1737640241662,-500.0,0.00016438,2]
[350118576,1737640241673,-160.948852,0.00016438,2]
[350118577,1737640241683,-160.948852,0.00016438,2]
[350118578,1737640241694,-160.948852,0.00016438,2]
[350118579,1737640241703,-500.0,0.00016438,2]
[350118580,1737640241712,-500.0,0.00016438,2]
[350118581,1737640241722,-501.49660315,0.00016438,2]
[350118582,1737640241732,-511.38594793,0.00016438,2]
[350118583,1737640241743,-500.0,0.00016438,2]
[350118584,1737640241753,-580.63,0.00016438,2]
[350118585,1737640241763,-500.0,0.00016438,2]
[350118586,1737640241772,-503.26120391,0.00016438,2]
[350118587,1737640241782,-500.0,0.00016438,2]
[350118588,1737640241792,-151.0,0.00016438,2]
[350118589,1737640241802,-151.0,0.00016438,2]
[350118590,1737640241811,-151.0,0.00016438,2]
[350118591,1737640241820,-500.86128138,0.00016438,2]
[350118592,1737640241829,-500.0,0.00016438,2]
[350118593,1737640241838,-500.0,0.00016438,2]
[350118594,1737640241847,-506.04000184,0.00016438,2]
[350118595,1737640241857,-500.0,0.00016438,2]
[350118596,1737640241866,-509.64874346,0.00016438,2]
[350118597,1737640241876,-500.0,0.00016438,2]
[350118598,1737640241885,-500.0,0.00016438,2]
[350118599,1737640241894,-500.0,0.00016438,2]
[350118600,1737640241903,-529.83647864,0.00016438,2]
[350118601,1737640241912,-500.0,0.00016438,2]
[350118602,1737640241922,-504.05906328,0.00016438,2]
[350118603,1737640241931,-508.76200467,0.00016438,2]
[350118604,1737640241940,-837.88,0.00016438,2]
[350118605,1737640241949,-500.0,0.00016438,2]
[350118606,1737640241958,-500.0,0.00016438,2]
[350118607,1737640241967,-500.0,0.00016438,2]
[350118608,1737640241977,-500.0,0.00016438,2]
[350118609,1737640241987,-500.0,0.00016438,2]
[350118610,1737640241996,-500.0,0.00016438,2]
[350118611,1737640242006,-500.0,0.00016438,2]
[350118612,1737640242017,-501.55441246,0.00016438,2]
[350118613,1737640242026,-500.0,0.00016438,2]
[350118614,1737640242036,-502.56847578,0.00016438,2]
[350118615,1737640242045,-500.0,0.00016438,2]
[350118616,1737640242054,-505.32095002,0.00016438,2]
[350118617,1737640242064,-500.0,0.00016438,2]
[350118618,1737640242073,-500.0,0.00016438,2]
[350118619,1737640242082,-500.0,0.00016438,2]
[350118620,1737640242092,-500.0,0.00016438,2]
[350118621,1737640242101,-500.0,0.00016438,2]
[350118622,1737640242110,-500.0,0.00016438,2]
[350118623,1737640242120,-500.0,0.00016438,2]
[350118624,1737640242129,-500.0,0.00016438,2]
[350118625,1737640242138,-500.0,0.00016438,2]
[350118626,1737640242147,-500.0,0.00016438,2]
[350118627,1737640242157,-500.0,0.00016438,2]
[350118628,1737640242167,-500.0,0.00016438,2]
[350118629,1737640242176,-500.0,0.00016438,2]
[350118630,1737640242186,-500.0,0.00016438,2]
[350118631,1737640242195,-500.0,0.00016438,2]
[350118632,1737640242205,-507.74723725,0.00016438,2]
[350118633,1737640242215,-500.0,0.00016438,2]
[350118634,1737640242224,-506.54714332,0.00016438,2]
[350118635,1737640242234,-514.78846079,0.00016438,2]
[350118636,1737640242243,-500.0,0.00016438,2]
[350118637,1737640242253,-500.0,0.00016438,2]
[350118638,1737640242264,-505.31921499,0.00016438,2]
[350118639,1737640242274,-156.721711,0.00016438,2]
[350118640,1737640242283,-500.0,0.00016438,2]
[350118641,1737640242292,-500.0,0.00016438,2]
[350118642,1737640242301,-517.15511604,0.00016438,2]
[350118643,1737640242311,-500.0,0.00016438,2]
[350118644,1737640242320,-505.69873543,0.00016438,2]
[350118645,1737640242330,-500.79049316,0.00016438,2]
[350118647,1737640242339,-502.88328621,0.00016438,2]
[350118649,1737640242348,-503.91669518,0.00016438,2]
[350118651,1737640242358,-151.0,0.00016438,2]
[350118653,1737640242367,-500.0,0.00016438,2]
[350118654,1737640242378,-500.0,0.00016438,2]
[350118656,1737640242391,-155.023412,0.00016438,2]
[350118657,1737640242402,-932.45,0.00016438,2]
[350118658,1737640242412,-509.08842132,0.00016438,2]
[350118659,1737640242428,-501.81696491,0.00016438,2]
[350118660,1737640242439,-504.16344921,0.00016438,2]
[350118662,1737640242450,-500.47213153,0.00016438,2]
[350118664,1737640242459,-500.0,0.00016438,2]
[350118666,1737640242470,-500.0,0.00016438,2]
[350118667,1737640242480,-500.71032818,0.00016438,2]
[350118668,1737640242489,-500.0,0.00016438,2]
[350118670,1737640242499,-500.0,0.00016438,2]
[350118672,1737640242509,-503.71606506,0.00016438,2]
[350118674,1737640242520,-501.93096141,0.00016438,2]
[350118676,1737640242530,-500.0,0.00016438,2]
[350118678,1737640242539,-502.3982739,0.00016438,2]
[350118679,1737640242550,-500.0,0.00016438,2]
[350118681,1737640242559,-500.0,0.00016438,2]
[350118684,1737640242569,-500.0,0.00016438,2]
[350118686,1737640242578,-500.0,0.00016438,2]
[350118688,1737640242587,-500.0,0.00016438,2]
[350118690,1737640242600,-500.92509681,0.00016438,2]
[350118691,1737640242615,-500.0,0.00016438,2]
[350118692,1737640242625,-151.0,0.00016438,2]
[350118693,1737640242638,-500.0,0.00016438,2]
[350118694,1737640242649,-151.0,0.00016438,2]
[350118695,1737640242659,-500.0,0.00016438,2]
[350118696,1737640242802,-151.0,0.00016438,2]
[350118697,1737640242813,-500.0,0.00016438,2]
[350118698,1737640242822,-351.979073,0.00016438,2]
[350118699,1737640242832,-351.979073,0.00016438,2]
[350118700,1737640242841,-351.979073,0.00016438,2]
[350118701,1737640242850,-500.0,0.00016438,2]
[350118702,1737640242861,-500.0,0.00016438,2]
[350118703,1737640242872,-500.0,0.00016438,2]
[350118704,1737640242881,-503.69207284,0.00016438,2]
[350118705,1737640242890,-570.74,0.00016438,2]
[350118706,1737640242900,-500.0,0.00016438,2]
[350118707,1737640242910,-151.0,0.00016438,2]
[350118708,1737640242921,-351.979073,0.00016438,2]
[350118709,1737640242931,-510.2534618,0.00016438,2]
[350118710,1737640242940,-151.0,0.00016438,2]
[350118711,1737640242950,-351.979073,0.00016438,2]
[350118712,1737640242961,-151.0,0.00016438,2]
[350118713,1737640242972,-351.979073,0.00016438,2]
[350118715,1737640242981,-151.0,0.00016438,2]
[350118717,1737640242991,-500.0,0.00016438,2]
[350118719,1737640243000,-151.0,0.00016438,2]
[350118721,1737640243009,-151.0,0.00016438,2]
[350118723,1737640243020,-500.0,0.00016438,2]
[350118725,1737640243030,-504.15006907,0.00016438,2]
[350118727,1737640243039,-500.0,0.00016438,2]
[350118729,1737640243048,-500.0,0.00016438,2]
[350118731,1737640243058,-500.0,0.00016438,2]
[350118733,1737640243067,-500.0,0.00016438,2]
[350118735,1737640243076,-151.0,0.00016438,2]
[350118737,1737640243085,-500.0,0.00016438,2]
[350118739,1737640243094,-151.0,0.00016438,2]
[350118741,1737640243104,-153.534509,0.00016438,2]
[350118743,1737640243112,-151.0,0.00016438,2]
[350118745,1737640243122,-577.50534625,0.00016438,2]
[350118747,1737640243131,-151.0,0.00016438,2]
[350118749,1737640243141,-151.0,0.00016438,2]
[350118751,1737640243151,-539.07759583,0.00016438,2]
[350118753,1737640243160,-151.0,0.00016438,2]
[350118755,1737640243170,-500.0,0.00016438,2]
[350118757,1737640243179,-151.0,0.00016438,2]
[350118759,1737640243189,-500.0,0.00016438,2]
[350118761,1737640243198,-151.0,0.00016438,2]
[350118763,1737640243208,-500.0,0.00016438,2]
[350118765,1737640243218,-151.0,0.00016438,2]
[350118767,1737640243227,-508.46381252,0.00016438,2]
[350118769,1737640243237,-500.0,0.00016438,2]
[350118771,1737640243247,-500.0,0.00016438,2]
[350118773,1737640243256,-151.0,0.00016438,2]
[350118775,1737640243268,-151.0,0.00016438,2]
[350118777,1737640243278,-500.0,0.00016438,2]
[350118780,1737640243287,-500.0,0.00016438,2]
[350118782,1737640243298,-151.0,0.00016438,2]
[350118784,1737640243307,-500.0,0.00016438,2]
[350118786,1737640243317,-500.0,0.00016438,2]
[350118788,1737640243327,-500.0,0.00016438,2]
[350118790,1737640243336,-500.0,0.00016438,2]
[350118792,1737640243345,-500.0,0.00016438,2]
[350118794,1737640243355,-510.08106549,0.00016438,2]